{"text_format":"3","workbook":"xlsx","n_sheets":1,"sheets":["Unit Bid Price Schedule"],"not_rendered":{"defined_names":1},"read":"whole","date_system":"1900"}

{"sheet":"Unit Bid Price Schedule","index":0,"n_rows":58,"n_cols":9,"rows_kept":58,"merged":[[2,0,2,8],[3,0,3,8],[4,0,4,8],[5,0,5,8],[6,0,6,8],[7,0,7,8],[8,0,8,1],[37,2,37,8],[41,0,41,1],[52,2,52,8],[56,7,56,8],[57,2,57,8]]}
["Section 00300B"]
["Unit Bid Price Schedule"]
["E.M.W. Gas Assocation"]
["614 US Route 66 (W)"]
["Moriarty, New Mexico"]
["Public Access CNG Fueling Station"]
["MECHANICAL / PLUMBING / CNG INTEGRATION"]
[]
["Base Bid Items"]
["Item #","Description","Qty","Units","Unit Cost         Materials","Total Cost         Materials","Unit Cost          Labor","Total Cost         Labor","Total Cost       Materials & Labor"]
[1,"JW Power EA-100-3 CNG Compressor Skid                                                        (Set, & Anchor)",1,"LS",null,{"$f":"C11*E11","v":0},null,{"$f":"C11*G11","v":0},{"$f":"F11+H11","v":0}]
[2,"Install CNG Storage Sphere Skids (3 spheres/skid)                                                 (Set, & Anchor)",2,"EA",null,{"$f":"C12*E12","v":0},null,{"$f":"C12*G12","v":0},{"$f":"F12+H12","v":0}]
[3,"Install Greenfield CNG Dispenser                                                                                   (Set, & Anchor)",1,"LS",null,0,null,0,0]
[4,"Install Xebec STR18NGX Gas Dryer                                                                                      (Set, & Anchor)",1,"LS",null,0,null,0,0]
[5,"ANGI 50 CNG Compressor                                                                                    (Set, & Anchor)",1,"LS",null,0,null,0,0]
[6,"TGT CNG Dispenser 7203-8 NGC50                                                                            (Set, & Anchor)",1,"LS",null,0,null,0,0]
[7,"Fuel Master FMU 2550 Card Reader                                                                                                  (Set, & Anchor)",1,"LS",null,0,null,0,0]
[8,"Rebuild/Reconfigure Skid Priority Panel System                                          (Includes Parts/Labor)",1,"LS",null,0,null,0,0]
[9,"1/2\" SS Tubing 0.065\" Wall (Comp to Storg, Storg to Disp)",700,"LF",null,0,null,0,0]
[10,"1/2\" SS Tubing 0.065\" Wall (Storage Manifold & Connections)",40,"LF",null,0,null,0,0]
[11,"1/2\" SS Tubing 0.020\" Wall (Air) (Comp to Storage & Disp's)",150,"LF",null,0,null,0,0]
[12,"1/2\" SS Tubing 0.020\" Wall (Air) (Storage Manifold & Connect)",40,"LF",null,0,null,0,0]
[13,"1/2\" SS AFV CNG Valves w/ Lockable Handles",13,"EA",null,0,null,0,0]
[14,"Misc CNG SS Valves & SS Fittings (ALLOWANCE)",1,"LS",{"v":15000,"d":"$15,000.00"},{"v":15000,"d":"$15,000.00"},null,null,{"v":15000,"d":"$15,000.00"}]
[15,"Coalescing Filter Rack Assemblies",2,"EA",null,0,null,0,0]
[16,"Greenfield Dispenser Tub",1,"EA",null,0,null,0,0]
[17,"Protective Hat over exposed Tubing/Conduits",1,"LS",null,0,null,0,0]
[18,"4\" Dia, 10' Tall Vent Stack Assy",2,"EA",null,0,null,0,0]
[19,"2\" Sch. 80 Black Iron Pipe, (Vent Pipe) (Painted White)",55,"LF",null,0,null,0,0]
[20,"20# BC Fire Extinguishers & Cabinets",8,"EA",null,0,null,0,0]
[21,"CNG & Misc. Safety Signage (per drawings)",1,"LS",null,0,null,0,0]
[22,"Overall CNG Equipment/Station Integration/Start Up/Training",1,"LS",{"$nulls":3},0,0]
[23,"JW Power - Programming / Startup Support (ALLOWANCE)",1,"LS",null,null,{"v":7500,"d":"$7,500.00"},{"v":7500,"d":"$7,500.00"},{"v":7500,"d":"$7,500.00"}]
[null,"Subtotal Base Bid Items"]
[]
[24,"Gross Receipts Tax (On Labor Only)",{"v":0.076875,"d":"7.6875%"},"LS",{"$nulls":3},{"$f":"H34","v":0},{"$f":"C36*H36","v":0}]
["Total Base Bid Items",{"$nulls":7},{"$f":"I34+I36","v":0}]
["Total Bid (in Words)          _____________________________________________",null,"                                                                                                                                                                                                                           "]
[]
[]
[]
["Alternate Bid Items - CNG STORAGE SPHERES"]
["A1","Recondition CNG Storage Spheres                                                                                                           (Paint, Other Items as Req'd)",5,"EA",null,{"$f":"C43*E43","v":0},null,{"$f":"C43*G43","v":0},{"$f":"F43+H43","v":0}]
["A2","4' Dia CNG Storage Spheres (Set, & Anchor)",5,"EA",null,{"$f":"C44*E44","v":0},null,0,0]
["A3","1/2\" SS Tubing 0.065\" Wall (Storage Manifold & Connections)",55,"LF",null,0,null,0,0]
["A4","1/2\" SS AFV CNG Valves w/ Lockable Handles",5,"EA",null,0,null,0,0]
["A5","4\" Dia, 10' Tall Vent Stack Assy",2,"EA",null,0,null,0,0]
["A6","2\" Sch. 80 Black Iron Pipe, (Vent Pipe) (Painted White)",45,"LF",null,0,null,0,0]
[null,"Subtotal Alternate Bid Items - CNG STORAGE SPHERES"]
[]
["A7","Gross Receipts Tax (On Labor Only)",{"v":0.076875,"d":"7.6875%"},"LS",{"$nulls":3},{"$f":"H49","v":0},{"$f":"C51*H51","v":0}]
["Total Alternate Bid Items - CNG STORAGE SPHERES",{"$nulls":7},{"$f":"I49+I51","v":0}]
["Total Bid (in Words)          _____________________________________________",null,"                                                                                                                                                                                                                           "]
[]
[]
[]
["Total Base Bid Items + Alternate Bid Items",{"$nulls":6},{"$f":"I52+I37","v":0}]
["Total Bid (in Words)          _____________________________________________",null,"                                                                                                                                                                                                                           "]